Period,Quarter,"Recipient Name",City,Province,Country,Title,Language,Genre,Date,"Final Value","Original Value",Type,Purpose,Comments
2016-2017,P3,"Remstar Films Inc.",Montreal,Quebec,Canada,"Votez Bougon",French,Comedy,2016-09-23,569850.00,569850.00,"Recoupable Advance","Marketing Program",
2016-2017,P3,"Sudden Storm Entertainment Ltd. ",Toronto,Ontario,Canada,"Portfolio 2016-2017 Sudden Storm Entertainment Ltd.",English,"Science fiction/Fantasy/Tale",2016-09-26,15000.00,15000.00,"Recoupable Advance","Development Program",
2016-2017,P3,"Chantale Pag� consultation (L'Atelier de distribution)",Montreal,Quebec,Canada,"A la poursuite de la paix ",French,Documentary,2016-09-30,20000.00,20000.00,"Recoupable Advance","Marketing Program",
2016-2017,P3,"Films Christal, s.e.c.(Les), agissant par l'interm�diaire de son commandit�, Les Films Christal Inc",Montreal,Quebec,Canada,Hibou,French,Comedy,2016-09-30,20468.00,20468.00,"Recoupable Advance","Marketing Program",
2016-2017,P3,"Isuma Distribution International Ltd.",Montreal,Quebec,Canada,"Maliglutit (Searchers)",English,Drama,2016-09-30,37390.00,37390.00,"Recoupable Advance","Marketing Program",
2016-2017,P3,"Films Christal, s.e.c.(Les), agissant par l'interm�diaire de son commandit�, Les Films Christal Inc",Montreal,Quebec,Canada,"NOUVELLE VIE DE PAUL SNEIJDER (LA)",French,Drama,2016-10-02,8336.00,8336.00,"Recoupable Advance","Marketing Program",
2016-2017,P3,"Level Film Inc.",Toronto,Ontario,Canada,"Colossal Failure of the Modern Relationship (The)",English,"Romantic Comedy",2016-10-03,37661.00,37661.00,"Recoupable Advance","Marketing Program",
2016-2017,P3,"Elevation Pictures Corp.",Toronto,Ontario,Canada,"Closet Monster",English,Drama,2016-10-04,214900.00,214900.00,"Recoupable Advance","Marketing Program",
2016-2017,P3,"Mongrel Media Inc.",Toronto,Ontario,Canada,Maudie,English,Drama,2016-10-04,15200.00,15200.00,Contribution,"International Marketing Program",
2016-2017,P3,"First Generation Films Inc.",Toronto,Ontario,Canada,"Portfolio 2016-2017 First Generation Films Inc.",English,Thriller,2016-10-04,25000.00,25000.00,"Recoupable Advance","Development Program",
2016-2017,P3,"Jonathan Joffe Pictures Ltd.",Calgary,Alberta,Canada,"Portfolio 2016-2017 Jonathan Joffe Pictures Ltd.",English,"Science fiction/Fantasy/Tale",2016-10-04,15000.00,15000.00,"Recoupable Advance","Development Program",
2016-2017,P3,"Voyelles Films Productions inc.",Montreal,Quebec,Canada,"Portfolio 2016-2017 Voyelles Films Productions inc.",French,Drama,2016-10-04,15000.00,15000.00,"Recoupable Advance","Development Program",
2016-2017,P3,"SID Films Inc.",Winnipeg,Manitoba,Canada,"Stegman Is Dead",English,Comedy,2016-10-05,75000.00,75000.00,Investment,"Production Program",
2016-2017,P3,"The Second Time Around Inc.",Toronto,Ontario,Canada,"Second Time Around (The)",English,Drama,2016-10-06,1000.00,1000.00,Contribution,"International Marketing Program",
2016-2017,P3,"Funfilm Distribution Inc.",Montreal,Quebec,Canada,"Chasse au collet (La)",French,Drama,2016-10-07,20000.00,20000.00,"Recoupable Advance","Marketing Program",
2016-2017,P3,"Room Productions Inc.",Toronto,Ontario,Canada,Room,English,Drama,2016-10-07,2753316.00,3000000.00,Investment,"Production Program","Amended contract signed  10-OCT-14"
2016-2017,P3,"9338-0145 Qu�bec Inc.",Montreal,Quebec,Canada,"Song of Granite",English,Drama,2016-10-10,120000.00,120000.00,Investment,"Production Program",
2016-2017,P3,"Productions Miraculum Inc.",Montreal,Quebec,Canada,"Nous sommes les autres",French,Drama,2016-10-11,1150000.00,1150000.00,"Recoupable Advance","Production Program",
2016-2017,P3,"Geordie Sabbagh Productions Inc.",Toronto,Ontario,Canada,"Portfolio 2016-2017 Geordie Sabbagh Productions Inc.",English,Drama,2016-10-11,15000.00,15000.00,"Recoupable Advance","Development Program",
2016-2017,P3,"Metafilms Inc.",Montreal,Quebec,Canada,"Portfolio 2016-2017 Metafilms Inc.",French,Drama,2016-10-11,80160.00,25560.00,"Recoupable Advance","Development Program",
2016-2017,P3,"Metafilms Inc.",Montreal,Quebec,Canada,"Portfolio 2016-2017 Metafilms Inc.",French,Comedy,2016-10-11,54600.00,54600.00,"Recoupable Advance","Development Program",
2016-2017,P3,"Metafilms Inc.",Montreal,Quebec,Canada,"Portfolio 2016-2017 Metafilms Inc.",English,Thriller,2016-10-11,116560.00,36400.00,"Recoupable Advance","Development Program",
2016-2017,P3,"2531852 Ontario Inc.",Toronto,Ontario,Canada,"Becoming Burlesque",English,Drama,2016-10-13,134750.00,134750.00,Investment,"Production Program",
2016-2017,P3,"Milton's Secret Productions Inc.",Toronto,Ontario,Canada,"Milton's Secret",English,Drama,2016-10-13,570000.00,500000.00,Investment,"Production Program","Amended contract signed  16-OCT-15"
2016-2017,P3,"Films S�ville Inc. (Les) / Seville Pictures Inc.",Montreal,Quebec,Canada,"Nitro Rush",French,Action/Adventure,2016-10-13,398846.00,398846.00,"Recoupable Advance","Marketing Program",
2016-2017,P3,"Films Vision 4 Inc.",Montreal,Quebec,Canada,"Portfolio 2016-2017 Films Vision 4 Inc.",French,"Romantic Comedy",2016-10-13,25000.00,25000.00,"Recoupable Advance","Development Program",
2016-2017,P3,"High Definition Pictures Inc.",Winnipeg,Manitoba,Canada,"Portfolio 2016-2017 High Definition Pictures Inc.",English,Drama,2016-10-13,15000.00,15000.00,"Recoupable Advance","Development Program",
2016-2017,P3,"High Definition Pictures Inc.",Winnipeg,Manitoba,Canada,"Portfolio 2016-2017 High Definition Pictures Inc.",English,Drama,2016-10-13,30000.00,15000.00,"Recoupable Advance","Development Program",
2016-2017,P3,"Sexton & Son Productions Inc.",St-John's,Newfoundland/Labrad.,Canada,"Portfolio 2016-2017 Sexton & Son Productions Inc.",English,Drama,2016-10-13,15000.00,15000.00,"Recoupable Advance","Development Program",
2016-2017,P3,"Shore Road Pictures Inc.",Fredericton,"New Brunswick",Canada,"Portfolio 2016-2017 Shore Road Pictures Inc.",English,Comedy,2016-10-13,15000.00,15000.00,"Recoupable Advance","Development Program",
2016-2017,P3,"Zapruder Films Inc.",Toronto,Ontario,Canada,"Portfolio 2016-2017 Zapruder Films Inc.",English,"Romantic Comedy",2016-10-13,15000.00,15000.00,"Recoupable Advance","Development Program",
2016-2017,P3,"Search Engine Films Inc.",Toronto,Ontario,Canada,"Jean of the Joneses",English,Comedy,2016-10-14,49748.00,49748.00,"Recoupable Advance","Marketing Program",
2016-2017,P3,"Paper Year (Canada) Inc.",Toronto,Ontario,Canada,"Paper Year",English,Comedy,2016-10-14,500000.00,500000.00,Investment,"Production Program",
2016-2017,P3,"Paper Year (Canada) Inc.",Toronto,Ontario,Canada,"Paper Year",English,Comedy,2016-10-14,0.00,75000.00,"Recoupable Advance","Production Program","Amended contract signed  07-SEP-16"
2016-2017,P3,"Film Works Ltd. (The) ",Toronto,Ontario,Canada,"Portfolio 2015-2016 Film Works Ltd. (The)",English,Western,2016-10-17,29622.00,30000.00,"Recoupable Advance","Development Program","Amended contract signed  14-DEC-15"
2016-2017,P3,"Christal Films Productions inc.",Montreal,Quebec,Canada,"Portfolio 2016-2017 Christal Films Productions Inc.",French,Comedy,2016-10-17,51000.00,51000.00,"Recoupable Advance","Development Program",
2016-2017,P3,"Christal Films Productions inc.",Montreal,Quebec,Canada,"Portfolio 2016-2017 Christal Films Productions Inc.",French,"Romantic Comedy",2016-10-17,200000.00,38500.00,"Recoupable Advance","Development Program",
2016-2017,P3,"Christal Films Productions inc.",Montreal,Quebec,Canada,"Portfolio 2016-2017 Christal Films Productions Inc.",French,"Historical Drama",2016-10-17,130700.00,44200.00,"Recoupable Advance","Development Program",
2016-2017,P3,"Christal Films Productions inc.",Montreal,Quebec,Canada,"Portfolio 2016-2017 Christal Films Productions Inc.",French,Drama,2016-10-17,86500.00,35500.00,"Recoupable Advance","Development Program",
2016-2017,P3,"Christal Films Productions inc.",Montreal,Quebec,Canada,"Portfolio 2016-2017 Christal Films Productions Inc.",French,"Historical Drama",2016-10-17,161500.00,30800.00,"Recoupable Advance","Development Program",
2016-2017,P3,"Sancor Holdings Inc.",Toronto,Ontario,Canada,"Second Time Around (The)",English,Drama,2016-10-17,60000.00,60000.00,"Recoupable Advance","Marketing Program",
2016-2017,P3,"Screen Siren Pictures Inc.",Vancouver,"British Columbia",Canada,"Indian Horse",English,Drama,2016-10-18,437154.00,240000.00,"Recoupable Advance","Production Program","Amended contract signed  02-MAR-16"
2016-2017,P3,"Family Viewing Productions Ltd.",Toronto,Ontario,Canada,"Portfolio 2016-2017 Family Viewing Productions Ltd",English,Drama,2016-10-18,25000.00,25000.00,"Recoupable Advance","Development Program",
2016-2017,P3,"Hope of Glory Pictures Ltd.",Burnaby,"British Columbia",Canada,"Portfolio 2016-2017 Hope of Glory Pictures Ltd.",English,Comedy,2016-10-18,15000.00,15000.00,"Recoupable Advance","Development Program",
2016-2017,P3,"Hope of Glory Pictures Ltd.",Burnaby,"British Columbia",Canada,"Portfolio 2016-2017 Hope of Glory Pictures Ltd.",English,Mystery/Crime/Police,2016-10-18,30000.00,15000.00,"Recoupable Advance","Development Program",
2016-2017,P3,"Inferno Pictures Inc.",Winnipeg,Manitoba,Canada,"Portfolio 2016-2017 Inferno Pictures Inc.",English,Drama,2016-10-18,20600.00,20600.00,"Recoupable Advance","Development Program",
2016-2017,P3,"Inferno Pictures Inc.",Winnipeg,Manitoba,Canada,"Portfolio 2016-2017 Inferno Pictures Inc.",English,Drama,2016-10-18,42600.00,22000.00,"Recoupable Advance","Development Program",
2016-2017,P3,"Inferno Pictures Inc.",Winnipeg,Manitoba,Canada,"Portfolio 2016-2017 Inferno Pictures Inc.",English,Drama,2016-10-18,60000.00,17400.00,"Recoupable Advance","Development Program",
2016-2017,P3,"9281-8269 Qu�bec Inc.",St-Bruno,Quebec,Canada,"Portfolio 2016-2017 9281-8269 Qu�bec Inc.",French,Drama,2016-10-19,15000.00,15000.00,"Recoupable Advance","Development Program",
2016-2017,P3,"Topsail Development Limited",Halifax,"Nova Scotia",Canada,"Portfolio 2016-2017 Topsail Development Limited",English,Comedy,2016-10-19,15000.00,15000.00,"Recoupable Advance","Development Program",
2016-2017,P3,"Vitality Media Productions Inc.",Toronto,Ontario,Canada,"Portfolio 2016-2017 Vitality Media Productions Inc.",English,Thriller,2016-10-19,15000.00,15000.00,"Recoupable Advance","Development Program",
2016-2017,P3,"Zeeworks Pictures Inc.",Vancouver,"British Columbia",Canada,"Portfolio 2016-2017 Zeeworks Pictures Inc.",English,Action/Adventure,2016-10-19,25000.00,25000.00,"Recoupable Advance","Development Program",
2016-2017,P3,"Films S�ville Inc. (Les) / Seville Pictures Inc.",Montreal,Quebec,Canada,"Juste la fin du monde",French,Drama,2016-10-20,453217.00,453217.00,"Recoupable Advance","Marketing Program",
2016-2017,P3,"P�riph�ria Productions Inc.",Montreal,Quebec,Canada,"Portfolio 2016-2017 P�riph�ria Productions Inc.",English,Drama,2016-10-20,15000.00,15000.00,"Recoupable Advance","Development Program",
2016-2017,P3,"108 Media Corporation",Toronto,Ontario,Canada,Birdland,English,Mystery/Crime/Police,2016-10-21,50000.00,50000.00,"Recoupable Advance","Marketing Program",
2016-2017,P3,"Axia Films inc.",Montreal,Quebec,Canada,"Pacte des anges (Le)",French,Drama,2016-10-21,215893.00,188743.00,"Recoupable Advance","Marketing Program","Amended contract signed  28-SEP-16"
2016-2017,P3,"Big Motion Pictures Limited",Chester,"Nova Scotia",Canada,"Portfolio 2016-2017 Big Motion Pictures Limited",English,Drama,2016-10-21,15000.00,15000.00,"Recoupable Advance","Development Program",
2016-2017,P3,"Trilight Entertainment Inc.",Calgary,Alberta,Canada,"Portfolio 2016-2017 Trilight Entertainment Inc.",English,Action/Adventure,2016-10-21,15000.00,15000.00,"Recoupable Advance","Development Program",
2016-2017,P3,"Forum Films 2005 Inc.",Montreal,Quebec,Canada,"Portfolio 2016-2017 Forum Films 2005 Inc.",French,"Historical Drama",2016-10-24,30000.00,30000.00,"Recoupable Advance","Development Program",
2016-2017,P3,"Forum Films 2005 Inc.",Montreal,Quebec,Canada,"Portfolio 2016-2017 Forum Films 2005 Inc.",French,"Romantic Comedy",2016-10-24,45000.00,15000.00,"Recoupable Advance","Development Program",
2016-2017,P3,"Productions Caramel Film Inc.",Montreal,Quebec,Canada,"Portfolio 2016-2017 Productions Caramel Film Inc.",French,Comedy,2016-10-24,43160.00,43160.00,"Recoupable Advance","Development Program",
2016-2017,P3,"Productions Caramel Film Inc.",Montreal,Quebec,Canada,"Portfolio 2016-2017 Productions Caramel Film Inc.",English,Drama,2016-10-24,84336.00,18816.00,"Recoupable Advance","Development Program",
2016-2017,P3,"Productions Caramel Film Inc.",Montreal,Quebec,Canada,"Portfolio 2016-2017 Productions Caramel Film Inc.",French,Drama,2016-10-24,142849.00,58513.00,"Recoupable Advance","Development Program",
2016-2017,P3,"Productions Caramel Film Inc.",Montreal,Quebec,Canada,"Portfolio 2016-2017 Productions Caramel Film Inc.",French,Comedy,2016-10-24,65520.00,22360.00,"Recoupable Advance","Development Program",
2016-2017,P3,"Productions Caramel Film Inc.",Montreal,Quebec,Canada,"Portfolio 2016-2017 Productions Caramel Film Inc.",French,Drama,2016-10-24,200000.00,57151.00,"Recoupable Advance","Development Program",
2016-2017,P3,"Productions Caramel Film Inc.",Montreal,Quebec,Canada,"Portfolio 2016-2017 Productions Caramel Film Inc.",French,Drama,2016-10-24,215000.00,15000.00,"Recoupable Advance","Development Program",
2016-2017,P3,"Quadrant Motion Pictures Inc.",Toronto,Ontario,Canada,"Portfolio 2016-2017 Quadrant Motion Pictures Inc.",English,Comedy,2016-10-24,15000.00,15000.00,"Recoupable Advance","Development Program",
2016-2017,P3,"Max Films Inc.",Montreal,Quebec,Canada,"Portfolio 2016-2017 Max Films Inc.",French,Drama,2016-10-25,115000.00,115000.00,"Recoupable Advance","Development Program",
2016-2017,P3,"Orange M�dias Inc.",Rosemere,Quebec,Canada,"Portfolio 2016-2017 Orange M�dias Inc.",French,Drama,2016-10-25,35000.00,20000.00,"Recoupable Advance","Development Program",
2016-2017,P3,"Orange M�dias Inc.",Rosemere,Quebec,Canada,"Portfolio 2016-2017 Orange M�dias Inc.",French,Drama,2016-10-25,50000.00,15000.00,"Recoupable Advance","Development Program",
2016-2017,P3,"Orange M�dias Inc.",Rosemere,Quebec,Canada,"Portfolio 2016-2017 Orange M�dias Inc.",English,Comedy,2016-10-25,15000.00,15000.00,"Recoupable Advance","Development Program",
2016-2017,P3,"Alcina Pictures Ltd.",Toronto,Ontario,Canada,"Portfolio 2016-2017 Alcina Pictures Ltd.",English,Thriller,2016-10-26,15000.00,15000.00,"Recoupable Advance","Development Program",
2016-2017,P3,"Films Du Paria Inc. (les)",Longueuil,Quebec,Canada,"Portfolio 2016-2017 Films Du Paria Inc. (les)",French,"Romantic Comedy",2016-10-27,15000.00,15000.00,"Recoupable Advance","Development Program",
2016-2017,P3,"9347-7784 Qu�bec inc.",Montreal,Quebec,Canada,"Chien de garde",French,Thriller,2016-10-28,430000.00,430000.00,Investment,"Production Program",
2016-2017,P3,"Carousel Pictures Inc.",Toronto,Ontario,Canada,"Portfolio 2016-2017 Carousel Pictures Inc.",English,"Historical Drama",2016-10-28,15000.00,15000.00,"Recoupable Advance","Development Program",
2016-2017,P3,"Circle Blue Films Inc.",Mississauga,Ontario,Canada,"Portfolio 2016-2017 Circle Blue Films Inc.",English,"Science fiction/Fantasy/Tale",2016-10-28,15000.00,15000.00,"Recoupable Advance","Development Program",
2016-2017,P3,"Microscope inc.",Montreal,Quebec,Canada,"Portfolio 2016-2017 Microscope Inc.",French,Drama,2016-10-28,200000.00,30000.00,"Recoupable Advance","Development Program",
2016-2017,P3,"Microscope inc.",Montreal,Quebec,Canada,"Portfolio 2016-2017 Microscope Inc.",French,Comedy,2016-10-28,170000.00,58500.00,"Recoupable Advance","Development Program",
2016-2017,P3,"Microscope inc.",Montreal,Quebec,Canada,"Portfolio 2016-2017 Microscope Inc.",English,Action/Adventure,2016-10-28,61000.00,61000.00,"Recoupable Advance","Development Program",
2016-2017,P3,"Microscope inc.",Montreal,Quebec,Canada,"Portfolio 2016-2017 Microscope Inc.",English,Comedy,2016-10-28,111500.00,50500.00,"Recoupable Advance","Development Program",
2016-2017,P3,"Precious Snowflake Productions Inc.",Toronto,Ontario,Canada,"Portfolio 2016-2017 Precious Snowflake Productions Inc.",English,Comedy,2016-10-28,15000.00,15000.00,"Recoupable Advance","Development Program",
2016-2017,P3,"Scythia Films Inc.",Toronto,Ontario,Canada,"Portfolio 2016-2017 Scythia Films Inc.",English,Thriller,2016-10-28,15000.00,15000.00,"Recoupable Advance","Development Program",
2016-2017,P3,"Pyewacket Jobro Productions Inc.",Toronto,Ontario,Canada,Pyewacket,English,Horror,2016-11-01,750000.00,750000.00,Investment,"Production Program",
2016-2017,P3,"Coop Vid�o de Montr�al",Montreal,Quebec,Canada,"Portfolio 2013-2014 Coop Vid�o de Montr�al",French,Mystery/Crime/Police,2016-11-03,73598.00,15000.00,"Recoupable Advance","Development Program","Amended contract signed  18-NOV-13"
2016-2017,P3,"First Generation Films Inc.",Toronto,Ontario,Canada,"Portfolio 2013-2014 First Generation Films Inc.",English,"Science fiction/Fantasy/Tale",2016-11-03,75230.00,25000.00,"Recoupable Advance","Development Program","Amended contract signed  15-NOV-13"
2016-2017,P3,"Euclid 431 Pictures Inc.",Toronto,Ontario,Canada,"Portfolio 2016-2017 Euclid 431 Pictures Inc.",English,Thriller,2016-11-03,25000.00,25000.00,"Recoupable Advance","Development Program",
2016-2017,P3,"MCP Productions Inc.",Montreal,Quebec,Canada,"Portfolio 2016-2017 MCP Productions Inc.",English,"Science fiction/Fantasy/Tale",2016-11-03,30000.00,15000.00,"Recoupable Advance","Development Program",
2016-2017,P3,"MCP Productions Inc.",Montreal,Quebec,Canada,"Portfolio 2016-2017 MCP Productions Inc.",French,Comedy,2016-11-03,15000.00,15000.00,"Recoupable Advance","Development Program",
2016-2017,P3,"Productions 10e Ave inc.",St-Augustin-Desmaure,Quebec,Canada,"Portfolio 2016-2017 Productions 10e Ave Inc.",French,Comedy,2016-11-03,105000.00,16582.00,"Recoupable Advance","Development Program",
2016-2017,P3,"Productions 10e Ave inc.",St-Augustin-Desmaure,Quebec,Canada,"Portfolio 2016-2017 Productions 10e Ave Inc.",French,Action/Adventure,2016-11-03,15664.00,15664.00,"Recoupable Advance","Development Program",
2016-2017,P3,"Productions 10e Ave inc.",St-Augustin-Desmaure,Quebec,Canada,"Portfolio 2016-2017 Productions 10e Ave Inc.",French,Action/Adventure,2016-11-03,88418.00,72754.00,"Recoupable Advance","Development Program",
2016-2017,P3,"�a Tourne Productions Ltee.","Ste-Anne du Bocage","New Brunswick",Canada,"Portfolio 2016-2017 �a Tourne Productions Ltee.",French,Drama,2016-11-03,15000.00,15000.00,"Recoupable Advance","Development Program",
2016-2017,P3,"Relay Station Development Inc.",Toronto,Ontario,Canada,"Ordinary Days",English,Drama,2016-11-04,134750.00,134750.00,Investment,"Production Program",
2016-2017,P3,"6710875 Canada Inc. (faisant affaires sous Nish Media)",Gatineau,Quebec,Canada,"Portfolio 2016-2017 6710875 Canada inc.",French,Action/Adventure,2016-11-07,15000.00,15000.00,"Recoupable Advance","Development Program",
2016-2017,P3,"Level Film Inc.",Toronto,Ontario,Canada,"Girl King (The)",English,"Historical Drama",2016-11-08,38115.00,38115.00,"Recoupable Advance","Marketing Program",
2016-2017,P3,"Wubby Productions (Muse) Inc.",Montreal,Quebec,Canada,"Petite �cole d'H�l�ne (La)",French,Children,2016-11-08,40000.00,40000.00,"Recoupable Advance",Mini-treaties,
2016-2017,P3,"Carte Blanche Films Inc.",Ottawa,Ontario,Canada,"Portfolio 2016-2017 Carte Blanche Films Inc.",French,Drama,2016-11-08,15000.00,15000.00,"Recoupable Advance","Development Program",
2016-2017,P3,"Encore Films inc.",Montreal,Quebec,Canada,"Portfolio 2016-2017 Encore Films inc.",French,Drama,2016-11-08,15000.00,15000.00,"Recoupable Advance","Development Program",
2016-2017,P3,"Trinica Entertainment Consultants Inc.",Montreal,Quebec,Canada,"Portfolio 2016-2017 Trinica Entertainment Consultants Inc.",English,Drama,2016-11-08,20000.00,20000.00,"Recoupable Advance","Development Program",
2016-2017,P3,"Quiet Revolution Pictures Inc.",Ottawa,Ontario,Canada,"Portfolio 2016-2017 Quiet Revolution Pictures Inc.",English,"Historical Drama",2016-11-09,15000.00,15000.00,"Recoupable Advance","Development Program",
2016-2017,P3,"Smiley Guy Studios Inc.",Toronto,Ontario,Canada,"Portfolio 2016-2017 Smiley Guy Studios Inc.",English,Action/Adventure,2016-11-09,15000.00,15000.00,"Recoupable Advance","Development Program",
2016-2017,P3,"Goon 2 Productions Inc.",Toronto,Ontario,Canada,"Goon: Last of the Enforcers",English,Comedy,2016-11-10,25000.00,25000.00,Contribution,"International Marketing Program",
2016-2017,P3,"Screen Siren Pictures Inc.",Vancouver,"British Columbia",Canada,"Indian Horse",English,Drama,2016-11-10,0.00,240000.00,"Recoupable Advance","Production Program","Amended contract signed  02-MAR-16"
2016-2017,P3,"Buck Productions Inc.",Toronto,Ontario,Canada,"Portfolio 2016-2017 Buck Productions Inc.",English,"Science fiction/Fantasy/Tale",2016-11-10,15000.00,15000.00,"Recoupable Advance","Development Program",
2016-2017,P3,"GROUPE PVP INC.",Matane,Quebec,Canada,"Portfolio 2016-2017 GROUPE PVP INC.",French,Action/Adventure,2016-11-10,19955.00,19955.00,"Recoupable Advance","Development Program",
2016-2017,P3,"Mulmur Feed Co. Ltd.",Mulmur,Ontario,Canada,"Portfolio 2016-2017 Mulmur Feed Co. Ltd.",English,Drama,2016-11-10,45000.00,45000.00,"Recoupable Advance","Development Program",
2016-2017,P3,"Indian Horse Productions (BC) Inc.",Vancouver,"British Columbia",Canada,"Indian Horse",English,Drama,2016-11-11,4000000.00,4000000.00,"Investment, Recoupable Advance","Production Program",
2016-2017,P3,"Filmarto Inc.",Montreal,Quebec,Canada,"Portfolio 2016-2017 FILMARTO INC.",English,"Historical Drama",2016-11-14,40000.00,15000.00,"Recoupable Advance","Development Program",
2016-2017,P3,"Filmarto Inc.",Montreal,Quebec,Canada,"Portfolio 2016-2017 FILMARTO INC.",French,Comedy,2016-11-14,25000.00,25000.00,"Recoupable Advance","Development Program",
2016-2017,P3,"Cave Painting Pictures Inc.",Toronto,Ontario,Canada,"Portfolio 2016-2017 Cave Painting Pictures Inc.",English,Western,2016-11-15,15000.00,15000.00,"Recoupable Advance","Development Program",
2016-2017,P3,"Productions l'unit� centrale inc.",Montreal,Quebec,Canada,"Portfolio 2016-2017 Productions l'unit� centrale inc.",French,Drama,2016-11-15,15000.00,15000.00,"Recoupable Advance","Development Program",
2016-2017,P3,"Darius - Padre Productions Inc.",Toronto,Ontario,Canada,"Padre (The)",English,Drama,2016-11-16,119280.00,119280.00,"Recoupable Advance","Production Program",
2016-2017,P3,"Attraction Images inc.",Montreal,Quebec,Canada,"Portfolio 2016-2017 Attraction Images inc.",French,"Romantic Comedy",2016-11-16,43000.00,23500.00,"Recoupable Advance","Development Program",
2016-2017,P3,"Attraction Images inc.",Montreal,Quebec,Canada,"Portfolio 2016-2017 Attraction Images inc.",French,Action/Adventure,2016-11-16,19500.00,19500.00,"Recoupable Advance","Development Program",
2016-2017,P3,"Attraction Images inc.",Montreal,Quebec,Canada,"Portfolio 2016-2017 Attraction Images inc.",French,"Science fiction/Fantasy/Tale",2016-11-16,94307.00,51307.00,"Recoupable Advance","Development Program",
2016-2017,P3,"Schooled Films Inc.",Vancouver,"British Columbia",Canada,Public-Schooled,English,Comedy,2016-11-16,350000.00,350000.00,Investment,"Production Program",
2016-2017,P3,"Bad Astronaut Inc.",Halifax,"Nova Scotia",Canada,"Portfolio 2016-2017 Bad Astronaut Inc.",English,Comedy,2016-11-16,15000.00,15000.00,"Recoupable Advance","Development Program",
2016-2017,P3,"9297-6885 Qu�bec inc.",Montreal,Quebec,Canada,"Mirage (Le)",French,Comedy,2016-11-17,1980768.00,2075000.00,Investment,"Production Program","Amended contract signed  11-AUG-14"
2016-2017,P3,"Metropole Films Distribution",Montreal,Quebec,Canada,Brooklyn,English,Drama,2016-11-18,473193.00,299904.00,"Recoupable Advance","Marketing Program","Amended contract signed  14-DEC-15"
2016-2017,P3,"A71 Entertainment Inc.",Toronto,Ontario,Canada,Darken,English,"Science fiction/Fantasy/Tale",2016-11-21,40000.00,40000.00,"Recoupable Advance","Marketing Program",
2016-2017,P3,"Connections Productions Inc.",Bedford,"Nova Scotia",Canada,"Portfolio 2016-2017 Connections Productions Inc.",French,"Science fiction/Fantasy/Tale",2016-11-21,15000.00,15000.00,"Recoupable Advance","Development Program",
2016-2017,P3,"Crawlspace Films, Inc.","St. John's",Newfoundland/Labrad.,Canada,"Portfolio 2016-2017 Crawlspace Films, Inc.",English,Drama,2016-11-21,15000.00,15000.00,"Recoupable Advance","Development Program",
2016-2017,P3,"Honalee Productions Inc.",Vancouver,"British Columbia",Canada,"Portfolio 2016-2017 Honalee Productions Inc.",English,"Historical Drama",2016-11-21,15000.00,15000.00,"Recoupable Advance","Development Program",
2016-2017,P3,"Galafilm Productions (The Girl King) Inc. / Productions Galafilm (The Girl King) Inc.",Montreal,Quebec,Canada,"Girl King (The)",English,"Historical Drama",2016-11-22,31721.00,31721.00,"Recoupable Advance","Marketing Program",
2016-2017,P3,"D Films Corporation",Toronto,Ontario,Canada,"Mad Ship",English,"Historical Drama",2016-11-22,46500.00,129190.00,"Recoupable Advance","Marketing Program","Amended contract signed  26-OCT-12"
2016-2017,P3,"Entertainment One Films Canada Inc.",Montreal,Quebec,Canada,"9th Life of Louis Drax (The) ",English,Drama,2016-11-23,48077.00,48077.00,"Recoupable Advance","Marketing Program",
2016-2017,P3,"MAX FILMS (HTA) INC.",Montreal,Quebec,Canada,"HOCHELAGA, TERRE DES �MES",French,"Historical Drama",2016-11-23,3500000.00,3500000.00,"Investment, Recoupable Advance","Production Program",
2016-2017,P3,"Films S�ville Inc. (Les) / Seville Pictures Inc.",Montreal,Quebec,Canada,1:54,French,Drama,2016-11-24,344970.00,344970.00,"Recoupable Advance","Marketing Program",
2016-2017,P3,"Pier 21 Films Ltd.",Toronto,Ontario,Canada,"Portfolio 2016-2017 Pier 21 Films Ltd.",English,Drama,2016-11-25,15000.00,15000.00,"Recoupable Advance","Development Program",
2016-2017,P3,"MAX FILMS (HTA) INC.",Montreal,Quebec,Canada,"HOCHELAGA, TERRE DES �MES",French,"Historical Drama",2016-11-28,0.00,150000.00,"Recoupable Advance","Production Program","Amended contract signed  19-MAY-16"
2016-2017,P3,"Funfilm Distribution Inc.",Montreal,Quebec,Canada,PRANK,French,Comedy,2016-11-28,30000.00,30000.00,"Recoupable Advance","Marketing Program",
2016-2017,P3,"Elevation Pictures Corp.",Toronto,Ontario,Canada,Regression,English,Thriller,2016-11-28,191351.00,195593.00,"Recoupable Advance","Marketing Program","Amended contract signed  08-MAR-16"
2016-2017,P3,"BGIRP Inc.",Toronto,Ontario,Canada,"Brown Girl Begins",English,"Science fiction/Fantasy/Tale",2016-11-29,50000.00,50000.00,Investment,"Production Program",
2016-2017,P3,"Dead Shack Productions Inc.",Vancouver,"British Columbia",Canada,"Dead Shack",English,Horror,2016-11-29,250000.00,250000.00,Investment,"Production Program",
2016-2017,P3,"6909060 Canada Inc. (d/b/a Prospector Films)",Montreal,Quebec,Canada,"Portfolio 2016-2017 6909060 Canada Inc.",English,Comedy,2016-11-29,15000.00,15000.00,"Recoupable Advance","Development Program",
2016-2017,P3,"6909060 Canada Inc. (d/b/a Prospector Films)",Montreal,Quebec,Canada,"Portfolio 2016-2017 6909060 Canada Inc.",English,"Science fiction/Fantasy/Tale",2016-11-29,30000.00,15000.00,"Recoupable Advance","Development Program",
2016-2017,P3,"Item 7 Inc.",Montreal,Quebec,Canada,"Portfolio 2016-2017 Item 7 Inc.",English,Mystery/Crime/Police,2016-11-29,178000.00,47000.00,"Recoupable Advance","Development Program",
2016-2017,P3,"Item 7 Inc.",Montreal,Quebec,Canada,"Portfolio 2016-2017 Item 7 Inc.",French,Musical,2016-11-29,131000.00,25000.00,"Recoupable Advance","Development Program",
2016-2017,P3,"Item 7 Inc.",Montreal,Quebec,Canada,"Portfolio 2016-2017 Item 7 Inc.",English,Drama,2016-11-29,15000.00,15000.00,"Recoupable Advance","Development Program",
2016-2017,P3,"Item 7 Inc.",Montreal,Quebec,Canada,"Portfolio 2016-2017 Item 7 Inc.",French,Drama,2016-11-29,64000.00,49000.00,"Recoupable Advance","Development Program",
2016-2017,P3,"Item 7 Inc.",Montreal,Quebec,Canada,"Portfolio 2016-2017 Item 7 Inc.",English,"Historical Drama",2016-11-29,106000.00,27000.00,"Recoupable Advance","Development Program",
2016-2017,P3,"Item 7 Inc.",Montreal,Quebec,Canada,"Portfolio 2016-2017 Item 7 Inc.",French,Drama,2016-11-29,79000.00,15000.00,"Recoupable Advance","Development Program",
2016-2017,P3,"Mongrel Media Inc.",Toronto,Ontario,Canada,"Other Half (The)",English,Drama,2016-11-30,33413.00,33413.00,"Recoupable Advance","Marketing Program",
2016-2017,P3,"Films S�ville Inc. (Les) / Seville Pictures Inc.",Montreal,Quebec,Canada,Pays,French,Drama,2016-11-30,79653.00,79653.00,"Recoupable Advance","Marketing Program",
2016-2017,P3,"Howie Role Productions Inc.",Vancouver,"British Columbia",Canada,"Portfolio 2016-2017 Howie Role Productions Inc.",English,Mystery/Crime/Police,2016-11-30,30000.00,15000.00,"Recoupable Advance","Development Program",
2016-2017,P3,"Howie Role Productions Inc.",Vancouver,"British Columbia",Canada,"Portfolio 2016-2017 Howie Role Productions Inc.",English,"Historical Drama",2016-11-30,15000.00,15000.00,"Recoupable Advance","Development Program",
2016-2017,P3,"Films S�ville Inc. (Les) / Seville Pictures Inc.",Montreal,Quebec,Canada,"TWO LOVERS AND A BEAR",English,Drama,2016-11-30,331810.00,331810.00,"Recoupable Advance","Marketing Program",
2016-2017,P3,"Full Plate Productions Incorporated",Toronto,Ontario,Canada,"Void (The)",English,Horror,2016-11-30,2359.00,2359.00,Contribution,"International Marketing Program",
2016-2017,P3,"Birthmarked Productions Inc.",Montreal,Quebec,Canada,Birthmarked,English,Comedy,2016-12-01,2100000.00,2100000.00,"Recoupable Advance","Production Program",
2016-2017,P3,"Chaos A Film Company Inc.",Calgary,Alberta,Canada,"Portfolio 2016-2017 Chaos a film company inc.",English,"Science fiction/Fantasy/Tale",2016-12-01,30000.00,15000.00,"Recoupable Advance","Development Program",
2016-2017,P3,"Chaos A Film Company Inc.",Calgary,Alberta,Canada,"Portfolio 2016-2017 Chaos a film company inc.",English,"Historical Drama",2016-12-01,15000.00,15000.00,"Recoupable Advance","Development Program",
2016-2017,P3,"Hill 100 Productions Inc.",Toronto,Ontario,Canada,"Portfolio 2016-2017 Hill 100 Productions Inc.",English,Thriller,2016-12-01,15000.00,15000.00,"Recoupable Advance","Development Program",
2016-2017,P3,"Hill 100 Productions Inc.",Toronto,Ontario,Canada,"Portfolio 2016-2017 Hill 100 Productions Inc.",English,Thriller,2016-12-01,30000.00,15000.00,"Recoupable Advance","Development Program",
2016-2017,P3,"Capital Motion Picture Group Inc.",Ottawa,Ontario,Canada,"Away From Everywhere",English,Drama,2016-12-02,39532.00,39532.00,"Recoupable Advance","Marketing Program",
2016-2017,P3,"Productions Pixcom Inc.",Montreal,Quebec,Canada,"Portfolio  Productions Pixcom Inc. (projet Agora)",French,Drama,2016-12-02,200000.00,200000.00,"Recoupable Advance","Development Program",
2016-2017,P3,"SEW Productions (Quebec) Inc.",Dewittville,Quebec,Canada,"Someone Else's Wedding",English,"Romantic Comedy",2016-12-02,400000.00,400000.00,Investment,"Production Program",
2016-2017,P3,"Entertainment One Films Canada Inc.",Montreal,Quebec,Canada,"Steps (The)",English,Comedy,2016-12-05,164700.00,164700.00,"Recoupable Advance","Marketing Program",
2016-2017,P3,"Rhombus Media Inc.",Toronto,Ontario,Canada,"Man Who Invented Christmas (The)",English,"Historical Drama",2016-12-06,230000.00,230000.00,"Recoupable Advance","Production Program",
2016-2017,P3,"Solofilms Inc.",Montreal,Quebec,Canada,"Portfolio 2016-2017 Solofilms Inc.",English,Drama,2016-12-06,20000.00,20000.00,"Recoupable Advance","Development Program",
2016-2017,P3,"Solofilms Inc.",Montreal,Quebec,Canada,"Portfolio 2016-2017 Solofilms Inc.",French,Drama,2016-12-06,35000.00,15000.00,"Recoupable Advance","Development Program",
2016-2017,P3,"Solofilms Inc.",Montreal,Quebec,Canada,"Portfolio 2016-2017 Solofilms Inc.",French,"Historical Drama",2016-12-06,50000.00,15000.00,"Recoupable Advance","Development Program",
2016-2017,P3,"Mongrel Media Inc.",Toronto,Ontario,Canada,"Beeba Boys",English,Drama,2016-12-07,469766.00,911625.00,"Recoupable Advance","Marketing Program","Amended contract signed  28-OCT-15"
2016-2017,P3,"Funfilm Distribution Inc.",Montreal,Quebec,Canada,"Go�t d'un pays (Le)",French,Documentary,2016-12-07,17000.00,17000.00,"Recoupable Advance","Marketing Program",
2016-2017,P3,"A71 Entertainment Inc.",Toronto,Ontario,Canada,Darken,English,"Science fiction/Fantasy/Tale",2016-12-08,80000.00,40000.00,"Recoupable Advance","Marketing Program",
2016-2017,P3,"Rob Heydon Holdings Inc.","Stoney Creek",Ontario,Canada,"Portfolio 2016-2017 Rob Heydon Holdings Inc.",English,"Historical Drama",2016-12-08,15000.00,15000.00,"Recoupable Advance","Development Program",
2016-2017,P3,"Stone Cold Productions Limited",Dartmouth,"Nova Scotia",Canada,"Portfolio 2016-2017 Stone Cold Productions Limited - 2",English,Comedy,2016-12-08,15000.00,15000.00,"Recoupable Advance","Development Program",
2016-2017,P3,"A71 Entertainment Inc.",Toronto,Ontario,Canada,"Sadie's Last Day on Earth",English,Comedy,2016-12-08,74167.00,74167.00,"Recoupable Advance","Marketing Program",
2016-2017,P3,"DCP Mystery Arts Inc.",Toronto,Ontario,Canada,"Wait Till Helen Comes",English,Thriller,2016-12-08,2739569.00,2663604.00,Investment,"Production Program","Amended contract signed  11-SEP-14"
2016-2017,P3,"Bunk 11 Pictures Inc. ",Ottawa,Ontario,Canada,"Portfolio 2016-2017 Bunk 11 Pictures Inc.",English,Horror,2016-12-09,30000.00,15000.00,"Recoupable Advance","Development Program",
2016-2017,P3,"Bunk 11 Pictures Inc. ",Ottawa,Ontario,Canada,"Portfolio 2016-2017 Bunk 11 Pictures Inc.",English,Comedy,2016-12-09,15000.00,15000.00,"Recoupable Advance","Development Program",
2016-2017,P3,"The Film Farm Inc.",Toronto,Ontario,Canada,"Portfolio 2016-2017 The Film Farm Inc.",English,Drama,2016-12-09,20000.00,20000.00,"Recoupable Advance","Development Program",
2016-2017,P3,"The Film Farm Inc.",Toronto,Ontario,Canada,"Portfolio 2016-2017 The Film Farm Inc.",English,Drama,2016-12-09,35000.00,15000.00,"Recoupable Advance","Development Program",
2016-2017,P3,"The Film Farm Inc.",Toronto,Ontario,Canada,"Portfolio 2016-2017 The Film Farm Inc.",English,Drama,2016-12-09,50000.00,15000.00,"Recoupable Advance","Development Program",
2016-2017,P3,"9320-4410 Qu�bec Inc.",Quebec,Quebec,Canada,"Pacte des anges (Le)",French,Drama,2016-12-12,8370.00,8370.00,Contribution,"International Marketing Program",
2016-2017,P3,"Mongrel Media Inc.",Toronto,Ontario,Canada,Aloft,English,Drama,2016-12-13,37291.00,124500.00,"Recoupable Advance","Marketing Program","Amended contract signed  11-MAR-16"
2016-2017,P3,"PCF Bolduc Le Film Inc.",Montreal,Quebec,Canada,"Bolduc (La)",French,"Historical Drama",2016-12-13,2100000.00,2100000.00,Investment,"Production Program",
2016-2017,P3,"Elevation Pictures Corp.",Toronto,Ontario,Canada,"Mean Dreams",English,Thriller,2016-12-13,197381.00,197381.00,"Recoupable Advance","Marketing Program",
2016-2017,P3,"Trench 11 Productions Ontario Inc.",Toronto,Ontario,Canada,"Trench 11",English,Thriller,2016-12-14,400000.00,400000.00,Investment,"Production Program",
2016-2017,P3,"1976 Productions inc.",Montreal,Quebec,Canada,"Portfolio 2016-2017 1976 Productions Inc.",French,Drama,2016-12-15,15000.00,15000.00,"Recoupable Advance","Development Program",
2016-2017,P3,"�cho M�dia Les Rois Mongols Inc.",Montreal,Quebec,Canada,"Rois mongols (Les)",French,Drama,2016-12-15,1250000.00,1250000.00,Investment,"Production Program",
2016-2017,P3,"Am�rique film inc.",Montreal,Quebec,Canada,"Portfolio 2016-2017 Amerique Film Inc.",English,Horror,2016-12-16,15000.00,15000.00,"Recoupable Advance","Development Program",
2016-2017,P3,"Films Christal, s.e.c.(Les), agissant par l'interm�diaire de son commandit�, Les Films Christal Inc",Montreal,Quebec,Canada,"Chasse-Galerie, La l�gende",French,Drama,2016-12-19,406965.00,414577.00,"Recoupable Advance","Marketing Program","Amended contract signed  03-MAR-16"
2016-2017,P3,"Octavio Is Dead Films Inc.",Toronto,Ontario,Canada,"Octavio is Dead!",English,Drama,2016-12-19,450000.00,450000.00,Investment,"Production Program",
2016-2017,P3,"Films Christal, s.e.c.(Les), agissant par l'interm�diaire de son commandit�, Les Films Christal Inc",Montreal,Quebec,Canada,"Origine des esp�ces (L')",French,Drama,2016-12-19,43875.00,44109.00,"Recoupable Advance","Marketing Program","Amended contract signed  28-APR-16"
2016-2017,P3,"Microscope inc.",Montreal,Quebec,Canada,"A Worthy Companion",English,Drama,2016-12-20,1250000.00,439730.00,Investment,"Production Program","Amended contract signed  21-MAR-14"
2016-2017,P3,"Mongrel Media Inc.",Toronto,Ontario,Canada,"Every Thing Will Be Fine",English,Drama,2016-12-20,38204.00,46613.00,"Recoupable Advance","Marketing Program","Amended contract signed  09-MAR-16"
2016-2017,P3,"9231-3683 Qu�bec inc.",Montreal,Quebec,Canada,PRANK,French,Comedy,2016-12-20,25000.00,25000.00,Investment,"Production Program",
2016-2017,P3,"Goon 2 Productions Inc.",Toronto,Ontario,Canada,"Goon: Last of the Enforcers",English,Comedy,2016-12-20,3750000.00,3500000.00,Investment,"Production Program","Amended contract signed  05-AUG-15"
2016-2017,P3,"Les Films du Tricycle Inc.","Les Bergeronnes",Quebec,Canada,"Combat au bout de la nuit",French,Documentary,2016-12-22,15000.00,15000.00,"Recoupable Advance","Marketing Program",
2016-2017,P3,"9348-8310 Qu�bec inc.",Montreal,Quebec,Canada,"De l'amour pour No�l",French,Comedy,2016-12-22,1075000.00,1075000.00,Investment,"Production Program",
2016-2017,P3,"Foundry Films Inc.",Toronto,Ontario,Canada,"Portfolio 2016-2017 Foundry Films Inc.",English,Action/Adventure,2016-12-22,23303.00,23303.00,"Recoupable Advance","Development Program",
2016-2017,P3,"Foundry Films Inc.",Toronto,Ontario,Canada,"Portfolio 2016-2017 Foundry Films Inc.",English,Action/Adventure,2016-12-22,38309.00,15006.00,"Recoupable Advance","Development Program",
2016-2017,P3,"Foundry Films Inc.",Toronto,Ontario,Canada,"Portfolio 2016-2017 Foundry Films Inc.",English,"Historical Drama",2016-12-22,75000.00,21571.00,"Recoupable Advance","Development Program",
2016-2017,P3,"Foundry Films Inc.",Toronto,Ontario,Canada,"Portfolio 2016-2017 Foundry Films Inc.",English,Drama,2016-12-22,53429.00,15120.00,"Recoupable Advance","Development Program",
2016-2017,P3,"Serendipity Point Films Inc.",Toronto,Ontario,Canada,"Portfolio 2016-2017 Serendipity Point Films Inc.",English,Thriller,2016-12-22,200000.00,18232.00,"Recoupable Advance","Development Program",
2016-2017,P3,"Serendipity Point Films Inc.",Toronto,Ontario,Canada,"Portfolio 2016-2017 Serendipity Point Films Inc.",English,Drama,2016-12-22,20160.00,20160.00,"Recoupable Advance","Development Program",
2016-2017,P3,"Serendipity Point Films Inc.",Toronto,Ontario,Canada,"Portfolio 2016-2017 Serendipity Point Films Inc.",English,Mystery/Crime/Police,2016-12-22,181768.00,54870.00,"Recoupable Advance","Development Program",
2016-2017,P3,"Serendipity Point Films Inc.",Toronto,Ontario,Canada,"Portfolio 2016-2017 Serendipity Point Films Inc.",English,Drama,2016-12-22,95160.00,75000.00,"Recoupable Advance","Development Program",
2016-2017,P3,"Serendipity Point Films Inc.",Toronto,Ontario,Canada,"Portfolio 2016-2017 Serendipity Point Films Inc.",English,"Historical Drama",2016-12-22,126898.00,31738.00,"Recoupable Advance","Development Program",
2016-2017,P3,"7086881 Canada Inc.",Montreal,Quebec,Canada,"MOBILE �TOILE",French,Drama,2016-12-23,147425.00,150000.00,"Recoupable Advance",Mini-treaties,"Amended contract signed  12-FEB-15"
2016-2017,P3,"Corporation de d�veloppement et de production ACPAV Inc.",Montreal,Quebec,Canada,"POUR VIVRE ICI",French,Drama,2016-12-23,500000.00,500000.00,"Recoupable Advance","Production Program",
2016-2017,P3,"LGDT-3D INC",Montreal,Quebec,Canada,"Snowtime! (La Guerre des tuques 3D)",French,Comedy,2016-12-23,42000.00,42000.00,Contribution,"International Marketing Program",
2016-2017,P3,"Productions Sc�nat de L'Abitibi-Temiscamingue",Rouyn-Noranda,Quebec,Canada,"Festival du cin�ma international en Abitibi-T�miscamingue",,,2016-10-03,62082.00,62082.00,Contribution,"Promotion Program",
2016-2017,P3,"Pixel Qu�bec",Quebec,Quebec,Canada,"Pixel Qu�bec",,,2016-10-05,60000.00,60000.00,Contribution,"Promotion Program",
2016-2017,P3,"The Centre for Aboriginal Media (Ontario)",Toronto,Ontario,Canada,"The Centre For Aboriginal Media (ImagineNATIVE)",,,2016-10-06,16223.00,16223.00,Contribution,"Promotion Program",
2016-2017,P3,"Cin�math�que Qu�b�coise",Montreal,Quebec,Canada,"Les Sommets du cin�ma d'animation",,,2016-10-12,10000.00,10000.00,Contribution,"Promotion Program",
2016-2017,P3,Cin�franco,Toronto,Ontario,Canada,Cin�franco,,,2016-10-19,10815.00,10815.00,Contribution,"Promotion Program",
2016-2017,P3,"Yorkton Short Film and Video Festival Inc.",Yorkton,Saskatchewan,Canada,"Yorkton Film Festival",,,2016-10-19,22045.00,22045.00,Contribution,"Promotion Program",
2016-2017,P3,"Canadian Film Centre",Toronto,Ontario,Canada,"2016 Telefilm Canada Feature Comedy Exchange",,,2016-10-21,175000.00,175000.00,Contribution,"Promotion Program",
2016-2017,P3,"Meridian Artists Inc.",Toronto,Ontario,Canada,"Toronto Screenwriting Conference",,,2016-10-27,8000.00,8000.00,Contribution,"Promotion Program",
2016-2017,P3,"Canadian Media Producers Association - Association canadienne de la production m�diatique",Ottawa,Ontario,Canada,"VIFF Industry Exchange",,,2016-10-27,20000.00,20000.00,Contribution,"Promotion Program",
2016-2017,P3,"Cin�mental inc.",Winnipeg,Manitoba,Canada,Cin�mental,,,2016-11-07,9046.00,9046.00,Contribution,"Promotion Program",
2016-2017,P3,"Festival du film de l'Outaouais",Montreal,Quebec,Canada,"Festival du film de l'Outaouais",,,2016-11-07,21069.00,21069.00,Contribution,"Promotion Program",
2016-2017,P3,"Newfoundland Independent Filmmakers Co-Operative","St. John's",Newfoundland/Labrador,Canada,"Picture Start",,,2016-11-07,49000.00,49000.00,Contribution,"Promotion Program",
2016-2017,P3,"Canadian Media Producers Association - Association canadienne de la production m�diatique",Ottawa,Ontario,Canada,"Prime Time conference, Marketing Mentorship Program",,,2016-11-14,65000.00,65000.00,Contribution,"Promotion Program",
2016-2017,P3,"Serendipity Point Films Inc.",Toronto,Ontario,Canada,"Below Her Mouth",English,,2016-11-16,1000.00,1000.00,Contribution,"International Marketing Program",
2016-2017,P3,"The Island Media Arts Co-operative Association, Limited",Charlottetown,"Prince Edward Island",Canada,"PEI Screenwriters' Bootcamp ",,,2016-11-17,15000.00,15000.00,Contribution,"Promotion Program",
2016-2017,P3,"Slow Motion Food Film Fest Society",Wolfville,"Nova Scotia",Canada,"Devour! The Food Film Fest",,,2016-11-17,6000.00,6000.00,Contribution,"Promotion Program",
2016-2017,P3,"Canadian Filmmakers Festival",Toronto,Ontario,Canada,"Canadian Film Fest",,,2016-11-18,5000.00,5000.00,Contribution,"Promotion Program",
2016-2017,P3,"Highway 401 Films Inc.",Toronto,Ontario,Canada,"Wexford Plaza",English,,2016-11-21,5000.00,5000.00,Contribution,"International Marketing Program",
2016-2017,P3,"Conquering Lion Pictures Inc.",Toronto,Ontario,Canada,"Illegal (The)",English,,2016-11-24,1500.00,1500.00,Contribution,"International Marketing Program",
2016-2017,P3,"P�riph�ria Films Inc",Montreal,Quebec,Canada,PASSOVER,English,Comedy,2016-11-25,500.00,500.00,Contribution,"International Marketing Program",
2016-2017,P3,"Culture pour tous",Montreal,Quebec,Canada,"Journ�e nationale de la culture: F�te du cin�ma & musique",,,2016-11-28,15000.00,15000.00,Contribution,"Promotion Program",
2016-2017,P3,"GESTION CTVM + WEB INC",Outremont,Quebec,Canada,CTVM.info,,,2016-11-28,22000.00,22000.00,Contribution,"Promotion Program",
2016-2017,P3,"MC2 Communication M�dia inc.",Montreal,Quebec,Canada,"Living With Giants",English,Documentary,2016-11-28,1500.00,1500.00,Contribution,"International Marketing Program",
2016-2017,P3,"Midnight Lamp Films Inc.",Toronto,Ontario,Canada,"Stairs (The)",English,Documentary,2016-11-29,1000.00,1000.00,Contribution,"International Marketing Program",
2016-2017,P3,"Visions Ouest Productions",Vancouver,"British Columbia",Canada,"Rendez-vous du cin�ma qu�b�cois et francophone de Vancouver",,,2016-12-06,8132.00,8132.00,Contribution,"Promotion Program",
2016-2017,P3,"Vancouver Web Festival Presentation Society","New Westminster","British Columbia",Canada,"Vancouver Web Fest ",,,2016-12-08,5000.00,5000.00,Contribution,"Promotion Program",
2016-2017,P3,"Documentary Organization of Canada",Toronto,Ontario,Canada,"Festival Concierge",,,2016-12-09,8000.00,8000.00,Contribution,"Promotion Program",
2016-2017,P3,"Film And Video Arts Society Alberta (fava)",Edmonton,Alberta,Canada,"FAVA Fest ",,,2016-12-12,2500.00,2500.00,Contribution,"Promotion Program",
2016-2017,P3,"Film Zone Inc.",Moncton,"New Brunswick",Canada,"Festival international du cin�ma francophone en Acadie",,,2016-12-12,52808.00,52808.00,Contribution,"Promotion Program",
2016-2017,P3,"Femmes du cinema, de la television et des m�dias num�riques",Montreal,Quebec,Canada,FCTMN,,,2016-12-12,15000.00,15000.00,Contribution,"Promotion Program",
2016-2017,P3,"Women In Film and Television - Atlantic",Halifax,"Nova Scotia",Canada,"Women Making Waves",,,2016-12-12,2500.00,2500.00,Contribution,"Promotion Program",
2016-2017,P3,"Grassfire Films Inc.","New Waterford","Nova Scotia",Canada,Werewolf,English,,2016-12-13,22000.00,22000.00,Contribution,"International Marketing Program",
2016-2017,P3,"Festival de Cin�ma de la Ville de Qu�bec",Quebec,Quebec,Canada,"Quebec anglophone film tour",,,2016-12-13,15000.00,15000.00,Contribution,"Promotion Program",
2016-2017,P3,"Yukon Film Society",Whitehorse,Yukon,Canada,"Available Light Film Festival and ALFF Industry 2017",,,2016-12-13,8813.00,8813.00,Contribution,"Promotion Program",
2016-2017,P3,"ORGANISATION COMMUNICATIONS ET SOCI�T� OCS INC.",Montreal,Quebec,Canada,Cin�cole,,,2016-12-19,15000.00,15000.00,Contribution,"Promotion Program",
2016-2017,P3,"Clumsy Ophelia Productions Inc.",Toronto,Ontario,Canada,"Dim the Fluorescents",English,,2016-12-20,5000.00,5000.00,Contribution,"International Marketing Program",
2016-2017,P3,"The Charlottetown Film Society, Inc.",Charlottetown,"Prince Edward Island",Canada,"The Charlottetown Film Festival",,,2016-12-22,3500.00,3500.00,Contribution,"Promotion Program",
2016-2017,P3,"Fondation Fabienne Colas",Saint-Lambert,Quebec,Canada,"Festival International du Film Black de Montr�al",,,2016-12-22,15000.00,15000.00,Contribution,"Promotion Program",
2016-2017,P3,"Festival International du Film sur l'Art ",Montreal,Quebec,Canada,"Festival International du Film sur l'Art ",,,2016-12-22,49608.00,34608.00,Contribution,"Promotion Program","Amended contract signed  13-JUL-16"
2016-2017,P3,"Caravane Films Productions",Chicoutimi,Quebec,Canada,"Regard sur le court m�trage au Saguenay / March� du court",,,2016-12-23,37159.00,37159.00,Contribution,"Promotion Program",
2016-2017,P3,"Fondation Qu�bec cin�ma",Montreal,Quebec,Canada,"Soir�e Gala du cinema Qc et Initiatives diverses",,,2016-12-23,200000.00,200000.00,Contribution,"Promotion Program",
2016-2017,P3,"Terres en vues / Soci�t� pour la diffusion de la culture autochtone",Montreal,Quebec,Canada,"Festival du film et de la vid�o autochtone de Montr�al",,,2016-12-23,16166.00,16166.00,Contribution,"Promotion Program",
